bitfinex/quotes_BTCUSD_20251010
["timestamp","ask_amount","ask_price","bid_price","bid_amount"]
[1760065634315,0.3835084,121070.0,121060.0,0.40502439]
[1760065634534,0.6476584,121070.0,121060.0,0.40502439]
[1760065635155,0.6476584,121070.0,121060.0,0.01600436]
[1760065635363,0.6476584,121070.0,121060.0,0.40502439]
[1760065635569,0.6476584,121070.0,121060.0,0.57023172]
[1760065637684,0.4142184,121070.0,121060.0,0.57023172]
[1760065637831,0.5761784,121070.0,121060.0,0.57023172]
[1760065638691,0.5761784,121070.0,121060.0,0.40502439]
[1760065638868,1.10211843,121070.0,121060.0,0.00146399]
[1760065639085,0.87096616,121070.0,121060.0,0.00146399]
[1760065639488,1.10440616,121070.0,121060.0,0.00146399]
[1760065639643,0.87096616,121070.0,121060.0,0.00146399]
[1760065639864,1.10440616,121070.0,121060.0,0.00146399]
[1760065643307,0.87096616,121070.0,121060.0,0.00146399]
[1760065643513,1.10440616,121070.0,121060.0,0.00146399]
[1760065644670,0.87096616,121070.0,121060.0,0.00146399]
[1760065644866,1.19036616,121070.0,121060.0,0.00146399]
[1760065645418,0.95688616,121070.0,121060.0,0.00146399]
[1760065645622,1.19036616,121070.0,121060.0,0.00146399]
[1760065646427,0.95688616,121070.0,121060.0,0.00146399]
[1760065646627,1.19036616,121070.0,121060.0,0.00146399]
[1760065646880,0.95688616,121070.0,121060.0,0.00146399]
[1760065647245,1.19036616,121070.0,121060.0,0.00146399]
[1760065648305,1.34590619,121070.0,121060.0,0.00146399]
[1760065648513,1.57938619,121070.0,121060.0,0.00146399]
[1760065648666,1.34590619,121070.0,121060.0,0.00146399]
[1760065648875,1.57938619,121070.0,121060.0,0.00146399]
[1760065649751,0.56786613,121070.0,121060.0,0.00146399]
[1760065649952,1.19036616,121070.0,121060.0,0.00146399]
[1760065651561,0.80134613,121070.0,121060.0,0.00146399]
[1760065651770,1.19036616,121070.0,121060.0,0.00146399]
[1760065651962,1.82718619,121070.0,121060.0,0.00146399]
[1760065652361,2.16718619,121070.0,121060.0,0.00146399]
[1760065652560,1.93370619,121070.0,121060.0,0.00146399]
[1760065652799,2.16718619,121070.0,121060.0,0.00146399]
[1760065653026,1.84778619,121070.0,121060.0,0.00146399]
[1760065653215,2.16718619,121070.0,121060.0,0.00146399]
[1760065656872,1.84778619,121070.0,121060.0,0.00146399]
[1760065657177,2.16718619,121070.0,121060.0,0.00146399]
[1760065658627,1.93370619,121070.0,121060.0,0.00146399]
[1760065658827,2.16718619,121070.0,121060.0,0.00146399]
[1760065659842,1.84778619,121070.0,121060.0,0.00146399]
[1760065660041,0.66083367,121070.0,121060.0,0.00146399]
[1760065660424,0.57491367,121070.0,121060.0,0.00146399]
[1760065660624,0.89431367,121070.0,121060.0,0.00146399]
[1760065660821,1.2833337,121070.0,121060.0,0.00146399]
[1760065661024,1.43816616,121070.0,121060.0,0.00146399]
[1760065661226,1.35224616,121070.0,121060.0,0.00146399]
[1760065661517,1.43816616,121070.0,121060.0,0.00146399]
[1760065661697,1.04914613,121070.0,121060.0,0.00146399]
[1760065663418,0.81566613,121070.0,121060.0,0.00146399]
[1760065663599,1.04914613,121070.0,121060.0,0.00146399]
[1760065664809,1.43816616,121070.0,121060.0,0.00146399]
[1760065665006,1.11876616,121070.0,121060.0,0.00146399]
[1760065665285,0.65047245,121070.0,121060.0,0.39048402]
[1760065665467,0.59539367,121070.0,121060.0,0.39048402]
[1760065665667,0.89235367,121070.0,121060.0,0.39048402]
[1760065666087,0.65887367,121070.0,121060.0,0.39048402]
[1760065666403,0.89235367,121070.0,121060.0,0.39048402]
[1760065666796,0.89235367,121070.0,121060.0,0.00146399]
[1760065667001,1.04718613,121070.0,121060.0,0.00146399]
[1760065667538,0.89235367,121070.0,121060.0,0.00146399]
[1760065667801,1.04718613,121070.0,121060.0,0.00146399]
[1760065668190,1.04718613,121070.0,121060.0,0.16667132]
[1760065668191,0.41299368,121070.0,121060.0,0.16667132]
[1760065668394,0.71836368,121070.0,121060.0,0.55569135]
[1760065668601,0.87319614,121070.0,121060.0,0.55569135]
[1760065668772,0.71836368,121070.0,121060.0,0.55569135]
[1760065668955,0.40263246,121070.0,121060.0,0.55569135]
[1760065669198,0.2478,121070.0,121060.0,0.94471138]
[1760065669404,0.48128,121070.0,121060.0,1.28471138]
[1760065670287,0.2478,121070.0,121060.0,1.28471138]
[1760065670490,0.48128,121070.0,121060.0,1.28471138]
[1760065672514,0.48128,121070.0,121060.0,1.30951798]
[1760065674392,0.48128,121070.0,121060.0,1.28471138]
[1760065675625,0.48128,121070.0,121060.0,1.02540727]
[1760065681266,0.48128,121070.0,121060.0,0.50667132]
[1760065681438,0.48128,121070.0,121060.0,1.02540727]
[1760065681999,0.48124,121070.0,121060.0,0.50667132]
[1760065682898,0.2478,121070.0,121060.0,0.50667132]
[1760065683130,0.29960281,121070.0,121060.0,0.50667132]
[1760065684036,0.29877432,121070.0,121060.0,0.50667132]
[1760065685664,0.29877432,121070.0,121060.0,1.02540727]
[1760065687806,0.06533432,121070.0,121060.0,1.02540727]
[1760065688026,0.29877432,121070.0,121060.0,1.02540727]
[1760065694456,0.38923799,121070.0,121060.0,0.00146399]
[1760065694679,0.54407045,121070.0,121060.0,0.00146399]
[1760065694893,0.77747045,121070.0,121060.0,0.00146399]
[1760065697051,0.54407045,121070.0,121060.0,0.00146399]
[1760065697254,0.77747045,121070.0,121060.0,0.00146399]
[1760065698091,0.54407045,121070.0,121060.0,0.00146399]
[1760065698323,0.77747045,121070.0,121060.0,0.00146399]
[1760065698514,0.54407045,121070.0,121060.0,0.00146399]
[1760065698938,0.683558,121070.0,121060.0,0.52019994]
[1760065699155,0.62999045,121070.0,121060.0,0.52019994]
[1760065699451,0.62999045,121070.0,121060.0,0.00146399]
[1760065699893,0.54407045,121070.0,121060.0,0.00146399]
[1760065700107,0.86343045,121070.0,121060.0,0.00146399]
[1760065701896,0.70859799,121070.0,121060.0,0.00146399]
[1760065702107,0.86343045,121070.0,121060.0,0.00146399]
[1760065702946,0.62999045,121070.0,121060.0,0.00146399]
[1760065703173,0.80331045,121070.0,121060.0,0.00146399]
[1760065703342,0.56987045,121070.0,121060.0,0.00146399]
[1760065703674,0.70859799,121070.0,121060.0,0.00146399]
[1760065703834,0.86343045,121070.0,121060.0,0.00146399]
[1760065704034,0.54407045,121070.0,121060.0,0.52019994]
[1760065704236,0.62267799,121070.0,121060.0,0.52019994]
[1760065704433,0.47515799,121070.0,121060.0,0.52019994]
[1760065704687,0.70859799,121070.0,121060.0,0.52019994]
[1760065704891,0.86343045,121070.0,121060.0,0.52019994]
[1760065706102,0.86285227,121070.0,121060.0,0.52019994]
[1760065707057,0.86285227,121070.0,121060.0,0.00146399]
[1760065707842,0.86285227,121070.0,121060.0,0.52019994]
[1760065707843,0.54349227,121070.0,121060.0,0.52019994]
[1760065708040,0.86285227,121070.0,121060.0,0.52019994]
[1760065708238,0.62941227,121070.0,121060.0,0.52019994]
[1760065708459,0.86285227,121070.0,121060.0,0.52019994]
[1760065708659,0.70801981,121070.0,121060.0,0.52019994]
[1760065708837,0.86285227,121070.0,121060.0,0.52019994]
[1760065709919,0.70801981,121070.0,121060.0,0.52019994]
[1760065710118,0.86285227,121070.0,121060.0,0.52019994]
[1760065710500,0.86285227,121070.0,121060.0,0.00146399]
[1760065713304,0.62941227,121070.0,121060.0,0.00146399]
[1760065713523,0.70801981,121070.0,121060.0,0.52019994]
[1760065713696,0.86285227,121070.0,121060.0,0.52019994]
[1760065715420,0.62941227,121070.0,121060.0,0.52019994]
[1760065715660,0.86285227,121070.0,121060.0,0.52019994]
[1760065717125,0.86285227,121070.0,121060.0,0.00146399]
[1760065717326,0.86285227,121070.0,121060.0,0.52019994]
[1760065717532,0.86285227,121070.0,121060.0,0.00146399]
[1760065717776,0.86285227,121070.0,121060.0,0.52019994]
[1760065717995,0.62941227,121070.0,121060.0,0.52019994]
[1760065718276,0.86285227,121070.0,121060.0,0.00146399]
[1760065718884,0.62941227,121070.0,121060.0,0.00146399]
[1760065719092,0.86285227,121070.0,121060.0,0.00146399]
[1760065727059,0.62941227,121070.0,121060.0,0.00146399]
[1760065727289,0.86285227,121070.0,121060.0,0.00146399]
[1760065728289,0.62941227,121070.0,121060.0,0.00146399]
[1760065728483,0.86285227,121070.0,121060.0,0.00146399]
[1760065735187,0.62941227,121070.0,121060.0,0.00146399]
[1760065735411,0.86285227,121070.0,121060.0,0.00146399]
[1760065737669,0.86285227,121070.0,121060.0,0.39064229]
[1760065739557,0.67209568,121070.0,121060.0,0.39064229]
[1760065739923,0.91989568,121070.0,121060.0,0.39064229]
[1760065740593,0.91989568,121070.0,121060.0,0.00146399]
[1760065740824,0.91989568,121070.0,121060.0,0.39064229]
[1760065743308,0.68645568,121070.0,121060.0,0.39064229]
[1760065743562,0.91985568,121070.0,121060.0,0.39064229]
[1760065744019,0.91985568,121070.0,121060.0,0.00146399]
[1760065745189,0.91985568,121070.0,121060.0,0.39064229]
[1760065745807,0.68645568,121070.0,121060.0,0.39064229]
[1760065746396,0.91985568,121070.0,121060.0,0.39064229]
[1760065746809,0.68645568,121070.0,121060.0,0.39064229]
[1760065747387,0.91985568,121070.0,121060.0,0.39064229]
[1760065747590,0.68645568,121070.0,121060.0,0.39064229]
[1760065748448,0.91985568,121070.0,121060.0,0.39064229]
[1760065748861,0.68645568,121070.0,121060.0,0.39064229]
[1760065749522,0.91985568,121070.0,121060.0,0.39064229]
[1760065749902,0.68645568,121070.0,121060.0,0.39064229]
[1760065750161,0.91985568,121070.0,121060.0,0.39064229]
[1760065753243,0.60053568,121070.0,121060.0,0.39064229]
[1760065753445,0.91985568,121070.0,121060.0,0.39064229]
[1760065754468,0.91985568,121070.0,121060.0,0.00146399]
[1760065754750,0.91985568,121070.0,121060.0,0.39064229]
[1760065756749,0.72070115,121070.0,121060.0,0.39064229]
[1760065756947,0.95537483,121070.0,121060.0,0.39064229]
[1760065758779,1.01546483,121070.0,121060.0,0.39064229]
[1760065759163,0.78206483,121070.0,121060.0,0.42870229]
[1760065759595,0.78206483,121070.0,121060.0,0.39064229]
[1760065760058,1.01546483,121070.0,121060.0,0.39064229]
[1760065762051,1.01546483,121070.0,121060.0,0.00146399]
[1760065762255,1.01546483,121070.0,121060.0,0.39064229]
[1760065762993,0.78206483,121070.0,121060.0,0.00146399]
[1760065763198,1.01546483,121070.0,121060.0,0.39064229]
[1760065763352,0.78206483,121070.0,121060.0,0.39064229]
[1760065763538,1.01546483,121070.0,121060.0,0.39064229]
[1760065766775,0.78206483,121070.0,121060.0,0.00146399]
[1760065766977,0.78206483,121070.0,121060.0,0.39064229]
[1760065767654,1.01546483,121070.0,121060.0,0.39064229]
[1760065771981,0.78206483,121070.0,121060.0,0.39064229]
[1760065772188,1.01546483,121070.0,121060.0,0.39064229]
[1760065772593,0.78206483,121070.0,121060.0,0.00146399]
[1760065772739,1.01542483,121070.0,121060.0,0.00146399]
[1760065774649,1.01542483,121070.0,121060.0,0.39064229]
[1760065777061,0.69614483,121070.0,121060.0,0.39064229]
[1760065777217,1.01542483,121070.0,121060.0,0.39064229]
[1760065778360,1.01542483,121070.0,121060.0,0.00146399]
[1760065779611,0.78206483,121070.0,121060.0,0.00146399]
[1760065779807,1.01542483,121070.0,121060.0,0.00146399]
[1760065779944,1.01542483,121070.0,121060.0,0.39064229]
[1760065780144,0.92950483,121070.0,121060.0,0.39064229]
[1760065780350,1.01542483,121070.0,121060.0,0.39064229]
[1760065781012,0.78206483,121070.0,121060.0,0.39064229]
[1760065781229,1.01542483,121070.0,121060.0,0.39064229]
[1760065785350,0.69614483,121070.0,121060.0,0.39064229]
[1760065785565,1.01542483,121070.0,121060.0,0.39064229]
[1760065786186,0.92950483,121070.0,121060.0,0.39064229]
[1760065786444,1.01542483,121070.0,121060.0,0.39064229]
[1760065786650,0.69614483,121070.0,121060.0,0.39064229]
[1760065786895,0.69614483,121070.0,121060.0,0.43135229]
[1760065786896,0.78206483,121070.0,121060.0,0.43135229]
[1760065787102,0.78206483,121070.0,121060.0,0.04217399]
[1760065787311,1.01542483,121070.0,121060.0,0.39064229]
[1760065787513,0.92950483,121070.0,121060.0,0.39064229]
[1760065787713,1.01542483,121070.0,121060.0,0.39064229]
[1760065788477,0.69614483,121070.0,121060.0,0.39064229]
[1760065788678,1.01542483,121070.0,121060.0,0.39064229]
[1760065789112,0.69614483,121070.0,121060.0,0.39064229]
[1760065789310,1.01542483,121070.0,121060.0,0.39064229]
[1760065790829,1.01542483,121070.0,121060.0,0.00146399]
[1760065791032,1.01542483,121070.0,121060.0,0.39064229]
[1760065791516,0.86059237,121070.0,121060.0,0.39064229]
[1760065791723,1.01542483,121070.0,121060.0,0.39064229]
[1760065793376,0.78206483,121070.0,121060.0,0.39064229]
[1760065793650,0.78206483,121070.0,121060.0,0.00146399]
[1760065793882,1.01542483,121070.0,121060.0,0.39064229]
[1760065794547,0.78206483,121070.0,121060.0,0.39064229]
[1760065794753,1.01542483,121070.0,121060.0,0.39064229]
[1760065796212,1.01542483,121070.0,121060.0,0.41545406]
[1760065796691,1.01542483,121070.0,121060.0,0.02627576]
[1760065796904,1.01542483,121070.0,121060.0,0.41545406]
[1760065799683,1.01542483,121070.0,121060.0,0.02627576]
[1760065800333,0.86059237,121070.0,121060.0,0.02627576]
[1760065800638,1.01542483,121070.0,121060.0,0.02627576]
[1760065802022,0.86059237,121070.0,121060.0,0.02627576]
[1760065802246,1.01542483,121070.0,121060.0,0.02627576]
[1760065802936,0.69614483,121070.0,121060.0,0.02627576]
[1760065803178,1.01538483,121070.0,121060.0,0.02627576]
[1760065807770,1.01538483,121070.0,121060.0,0.00146399]
[1760065808238,0.78206483,121070.0,121060.0,0.00146399]
[1760065808427,1.01538483,121070.0,121060.0,0.00146399]
[1760065808650,1.04019662,121070.0,121060.0,0.00146399]
[1760065817161,0.80687662,121070.0,121060.0,0.00146399]
[1760065817374,1.04019662,121070.0,121060.0,0.00146399]
[1760065823849,1.32576994,121070.0,121060.0,0.00146399]
[1760065824049,0.80687662,121070.0,121060.0,0.00146399]
[1760065824253,1.04015662,121070.0,121060.0,0.00146399]
[1760065825105,0.80687662,121070.0,121060.0,0.00146399]
[1760065825303,0.72095662,121070.0,121060.0,0.00146399]
[1760065825515,1.04015662,121070.0,121060.0,0.00146399]
[1760065825887,0.72095662,121070.0,121060.0,0.00146399]
[1760065826100,0.72095662,121070.0,121060.0,0.58257731]
[1760065826101,0.74678662,121070.0,121060.0,0.58257731]
[1760065826314,0.94086662,121070.0,121060.0,0.58257731]
[1760065826670,0.65943662,121070.0,121060.0,0.06368399]
[1760065826873,0.40138115,121070.0,121060.0,0.80479464]
[1760065827075,0.24654869,121070.0,121060.0,0.8296045]
[1760065827214,0.47982869,121070.0,121060.0,0.8296045]
[1760065827587,0.24654869,121070.0,121060.0,0.8296045]
[1760065827803,0.24654869,121070.0,121060.0,1.68849782]
[1760065828239,0.24654869,121070.0,121060.0,1.92177782]
[1760065828739,0.24654869,121070.0,121060.0,1.68849782]
[1760065828967,0.24654869,121070.0,121060.0,1.92177782]
[1760065830773,0.24654869,121070.0,121060.0,1.68849782]
[1760065831016,0.24654869,121070.0,121060.0,1.92177782]
[1760065831664,0.24654869,121070.0,121060.0,1.68849782]
[1760065831889,0.24654869,121070.0,121060.0,1.92177782]
[1760065832115,0.24654869,121070.0,121060.0,1.92277782]
[1760065832394,0.24654869,121070.0,121060.0,1.92377782]
[1760065832826,0.24654869,121070.0,121060.0,1.69049782]
[1760065833035,0.24654869,121070.0,121060.0,1.92373782]
[1760065833276,0.24654869,121070.0,121060.0,1.69049782]
[1760065833492,0.24654869,121070.0,121060.0,1.92373782]
[1760065835107,0.24654869,121070.0,121060.0,1.69049782]
[1760065835332,0.24654869,121070.0,121060.0,1.92373782]
[1760065837209,0.24654869,121070.0,121060.0,1.1716045]
[1760065838079,0.24654869,121070.0,121060.0,1.00639717]
[1760065838290,0.24654869,121070.0,121060.0,0.8316045]
[1760065838499,0.40138115,121070.0,121060.0,0.8316045]
[1760065839149,0.40138115,121070.0,121060.0,0.8306045]
[1760065839365,0.40138115,121070.0,121060.0,0.8296045]
[1760065840121,0.40138115,121070.0,121060.0,0.31071118]
[1760065840366,0.40138115,121070.0,121060.0,0.8296045]
[1760065840578,0.24654869,121070.0,121060.0,0.8296045]
[1760065840803,0.40138115,121070.0,121060.0,0.8296045]
[1760065841033,0.40138115,121070.0,121060.0,1.0628445]
[1760065842173,0.22426895,121070.0,121060.0,1.0628445]
[1760065843271,0.22426895,121070.0,121060.0,0.8296045]
[1760065843718,0.22426895,121070.0,121060.0,0.31071118]
[1760065843956,0.22426895,121070.0,121060.0,0.8296045]
[1760065844155,0.22426895,121070.0,121060.0,1.0628445]
[1760065844362,0.22426895,121070.0,121060.0,0.8296045]
[1760065844792,0.22426895,121070.0,121060.0,1.0628445]
[1760065844998,0.06943649,121070.0,121060.0,1.58173782]
[1760065845231,0.06943649,121070.0,121060.0,1.34849782]
[1760065845636,0.06943649,121070.0,121060.0,1.58173782]
[1760065852061,0.06943649,121070.0,121060.0,1.34849782]
[1760065852264,0.06943649,121070.0,121060.0,1.0628045]
[1760065852464,0.06943649,121070.0,121060.0,0.8296045]
[1760065852674,0.06943649,121070.0,121060.0,1.0628045]
[1760065853518,0.06943649,121070.0,121060.0,0.8296045]
[1760065853728,0.06943649,121070.0,121060.0,1.0628045]
[1760065859689,0.06943649,121070.0,121060.0,1.7107484]
[1760065861447,0.06943649,121070.0,121060.0,0.31071118]
[1760065861673,0.06943649,121070.0,121060.0,1.66180266]
[1760065861893,0.22426895,121070.0,121060.0,1.66180266]
[1760065862117,0.22426895,121070.0,121060.0,2.0507484]
[1760065862596,0.22426895,121070.0,121060.0,1.8175484]
[1760065863055,0.22426895,121070.0,121060.0,2.0507484]
[1760065863525,0.22426895,121070.0,121060.0,0.65071118]
[1760065863756,0.22426895,121070.0,121060.0,1.8175484]
[1760065864010,0.22426895,121070.0,121060.0,2.0507484]
[1760065864451,0.22426895,121070.0,121060.0,1.8175484]
[1760065864686,0.22426895,121070.0,121060.0,2.0507484]
[1760065864957,0.22426895,121070.0,121060.0,1.8175484]
[1760065865426,0.22426895,121070.0,121060.0,2.0507484]
[1760065865847,0.22426895,121070.0,121060.0,1.8175484]
[1760065866065,0.22426895,121070.0,121060.0,1.79273854]
[1760065866325,0.22426895,121070.0,121060.0,2.02593854]
[1760065866579,0.22426895,121070.0,121060.0,1.79273854]
[1760065866999,0.22426895,121070.0,121060.0,2.02593854]
[1760065867650,0.22426895,121070.0,121060.0,1.79273854]
[1760065868077,0.22426895,121070.0,121060.0,2.02593854]
[1760065868534,0.22426895,121070.0,121060.0,1.79273854]
[1760065868973,0.22426895,121070.0,121060.0,2.02593854]
[1760065869217,0.22426895,121070.0,121060.0,1.79273854]
[1760065869461,0.22426895,121070.0,121060.0,2.02593854]
[1760065871041,0.22426895,121070.0,121060.0,1.79273854]
[1760065871282,0.22426895,121070.0,121060.0,2.02593854]
[1760065871828,0.22426895,121070.0,121060.0,1.79273854]
[1760065871995,0.22426895,121070.0,121060.0,2.02593854]
[1760065872204,0.22426895,121070.0,121060.0,1.6369928]
[1760065875822,0.38946263,121070.0,121060.0,0.28590132]
[1760065876032,0.90369837,121070.0,121060.0,0.00146399]
[1760065876275,1.22281837,121070.0,121060.0,0.00146399]
[1760065877302,0.98961837,121070.0,121060.0,0.00146399]
[1760065877997,1.22281837,121070.0,121060.0,0.00146399]
[1760065878407,1.23406392,121070.0,121060.0,0.00146399]
[1760065878620,1.22281837,121070.0,121060.0,0.00146399]
[1760065879398,0.60067263,121070.0,121060.0,0.00146399]
[1760065879645,0.83387263,121070.0,121060.0,0.00146399]
[1760065880129,0.51475263,121070.0,121060.0,0.00146399]
[1760065880326,0.60067263,121070.0,121060.0,0.00146399]
[1760065880764,0.83387263,121070.0,121060.0,0.00146399]
[1760065881208,0.51475263,121070.0,121060.0,0.00146399]
[1760065881432,0.83387263,121070.0,121060.0,0.00146399]
[1760065887073,0.51475263,121070.0,121060.0,0.00146399]
[1760065887294,0.60067263,121070.0,121060.0,0.39040973]
[1760065887521,0.83387263,121070.0,121060.0,0.39040973]
[1760065887741,0.51475263,121070.0,121060.0,0.39040973]
[1760065887963,0.83387263,121070.0,121060.0,0.00146399]
[1760065888185,0.83387263,121070.0,121060.0,0.39040973]
[1760065890708,0.51475263,121070.0,121060.0,0.39040973]
[1760065890913,0.83391263,121070.0,121060.0,0.39040973]
[1760065892183,0.83391263,121070.0,121060.0,0.00146399]
[1760065892390,0.51475263,121070.0,121060.0,0.39040973]
[1760065892598,0.83391263,121070.0,121060.0,0.39040973]
[1760065893853,0.74799263,121070.0,121060.0,0.39040973]
[1760065894072,0.83391263,121070.0,121060.0,0.39040973]
[1760065894799,0.60067263,121070.0,121060.0,0.39040973]
[1760065895641,0.77581263,121070.0,121060.0,0.44504973]
[1760065895851,0.54257263,121070.0,121060.0,0.44504973]
[1760065896096,0.60260263,121070.0,121060.0,0.40835973]
[1760065896524,0.83584263,121070.0,121060.0,0.40835973]
[1760065896731,0.60260263,121070.0,121060.0,0.40835973]
[1760065897361,0.83584263,121070.0,121060.0,0.40835973]
[1760065897807,0.60260263,121070.0,121060.0,0.40835973]
[1760065898017,0.83584263,121070.0,121060.0,0.40835973]
[1760065898265,0.29145895,121070.0,121060.0,0.83399547]
[1760065898476,0.29145895,121070.0,121060.0,1.0544128]
[1760065898477,0.06943649,121070.0,121060.0,1.0544128]
[1760065898685,0.45750895,121070.0,121060.0,1.0544128]
[1760065898889,0.22426895,121070.0,121060.0,1.0544128]
[1760065899570,0.45750895,121070.0,121060.0,1.0544128]
[1760065900523,0.45750895,121070.0,121060.0,0.27652132]
[1760065900747,0.22426895,121070.0,121060.0,0.27652132]
[1760065900965,0.45750895,121070.0,121060.0,1.0544128]
[1760065902917,0.22426895,121070.0,121060.0,1.0544128]
[1760065903135,0.45746895,121070.0,121060.0,1.0544128]
[1760065903745,0.22426895,121070.0,121060.0,1.0544128]
[1760065903906,0.45746895,121070.0,121060.0,1.0544128]
[1760065904505,0.26453334,121090.0,121070.0,0.16519368]
[1760065904704,0.00051655,121090.0,121080.0,0.89259148]
[1760065904945,0.00051655,121090.0,121080.0,1.05777152]
[1760065905153,0.16568295,121090.0,121080.0,1.05777152]
[1760065905824,0.39888295,121090.0,121080.0,1.05777152]
[1760065908212,0.16568295,121090.0,121080.0,1.05777152]
[1760065908713,0.39888295,121090.0,121080.0,0.89259148]
[1760065908927,0.43851295,121090.0,121080.0,0.83738148]
[1760065909151,0.20531295,121090.0,121080.0,0.83738148]
[1760065909816,0.43851295,121090.0,121080.0,0.83738148]
[1760065910044,0.20531295,121090.0,121080.0,0.83738148]
[1760065910666,0.43851295,121090.0,121080.0,0.83738148]
[1760065911113,0.20531295,121090.0,121080.0,0.83738148]
[1760065911363,0.43851295,121090.0,121080.0,0.83738148]
[1760065911577,0.20531295,121090.0,121080.0,0.83738148]
[1760065911792,0.39888295,121090.0,121080.0,1.00256152]
[1760065912021,0.16568295,121090.0,121080.0,1.06195152]
[1760065912659,0.39888295,121090.0,121080.0,1.06195152]
[1760065913071,0.16568295,121090.0,121080.0,1.06195152]
[1760065913278,0.00051655,121090.0,121080.0,1.06195152]
[1760065913689,0.23371655,121090.0,121080.0,1.06195152]
[1760065914518,0.00051655,121090.0,121080.0,1.06195152]
[1760065914734,0.00051655,121090.0,121080.0,1.45089726]
[1760065915141,0.00051655,121090.0,121080.0,1.68409726]
[1760065915589,0.00051655,121090.0,121080.0,1.45089726]
[1760065915819,0.00051655,121090.0,121080.0,1.29515152]
[1760065916021,0.00051655,121090.0,121080.0,1.06195152]
[1760065916456,0.00051655,121090.0,121080.0,1.68409726]
[1760065916853,0.00051655,121090.0,121080.0,0.28406004]
[1760065917103,0.00051655,121090.0,121080.0,1.29511152]
[1760065920429,0.00051655,121090.0,121080.0,1.06195152]
[1760065920689,0.00051655,121090.0,121080.0,1.29511152]
[1760065921505,0.00051655,121090.0,121080.0,1.03574421]
[1760065922810,0.00051655,121090.0,121080.0,0.80258421]
[1760065923036,0.00051655,121090.0,121080.0,0.51722004]
[1760065923276,0.00051655,121090.0,121080.0,1.03574421]
[1760065924421,0.00051655,121090.0,121080.0,0.80258421]
[1760065924631,0.00051655,121090.0,121080.0,1.03574421]
[1760065926821,0.00051655,121090.0,121080.0,1.06054679]
[1760065927043,0.00051655,121090.0,121080.0,0.66220675]
[1760065927274,0.03862655,121090.0,121080.0,0.76799679]
[1760065927495,0.52249295,121090.0,121080.0,0.08429258]
[1760065927709,0.52249295,121090.0,121070.0,0.99797708]
[1760065928188,0.48388004,121080.0,121070.0,0.0228]
[1760065928409,0.16519368,121070.0,121060.0,0.53793816]
[1760065928637,0.48388004,121080.0,121060.0,0.73995549]
[1760065928854,0.48388004,121080.0,121060.0,0.79825549]
[1760065929296,0.25072004,121080.0,121070.0,0.51852417]
[1760065929495,0.52207004,121080.0,121070.0,0.57813417]
[1760065929833,0.46462004,121080.0,121070.0,0.57813417]
[1760065931251,0.52207004,121080.0,121070.0,0.57813417]
[1760065931887,0.28883004,121080.0,121070.0,0.57813417]
[1760065932104,0.42651004,121080.0,121070.0,0.63643417]
[1760065932237,0.46462004,121080.0,121070.0,0.57813417]
[1760065936437,0.00051655,121090.0,121070.0,0.80162785]
[1760065936650,0.00051655,121090.0,121080.0,0.78293221]
[1760065936873,0.00051655,121090.0,121080.0,0.76641421]
[1760065937101,0.00051655,121090.0,121080.0,0.80322421]
[1760065937323,0.23379655,121090.0,121080.0,0.80322421]
[1760065937538,0.39896295,121090.0,121080.0,0.80322421]
[1760065937970,0.39892295,121090.0,121080.0,0.80322421]
[1760065938182,0.16568295,121090.0,121080.0,0.80322421]
[1760065938409,0.23375655,121090.0,121080.0,0.80322421]
[1760065939566,0.00051655,121090.0,121080.0,0.80322421]
[1760065939776,0.23375655,121090.0,121080.0,0.80322421]
[1760065940001,0.39892295,121090.0,121080.0,0.80322421]
[1760065943864,0.23371655,121090.0,121080.0,0.80322421]
[1760065944285,0.39888295,121090.0,121080.0,0.80322421]
[1760065945522,0.16568295,121090.0,121080.0,0.28470004]
[1760065945729,0.39888295,121090.0,121080.0,0.28470004]
[1760065945942,0.39888295,121090.0,121080.0,0.80322421]
[1760065947051,0.16568295,121090.0,121080.0,0.80322421]
[1760065947236,0.39888295,121090.0,121080.0,0.80322421]
[1760065947680,0.23371655,121090.0,121080.0,0.80322421]
[1760065948284,0.39888295,121090.0,121080.0,0.28470004]
[1760065948487,0.39888295,121090.0,121080.0,0.80322421]
[1760065949063,0.16568295,121090.0,121080.0,0.80322421]
[1760065949264,0.39884295,121090.0,121080.0,0.80322421]
[1760065952097,0.16568295,121090.0,121080.0,0.80322421]
[1760065952302,0.39884295,121090.0,121080.0,0.80322421]
[1760065961441,0.19895734,121090.0,121080.0,0.80322421]
[1760065961661,0.36412374,121090.0,121080.0,0.80322421]
[1760065962954,0.36349608,121090.0,121080.0,0.80322421]
[1760065965247,0.19832968,121090.0,121080.0,0.80322421]
[1760065965486,0.17341039,121100.0,121090.0,0.1651664]
[1760065965675,0.17341039,121100.0,121090.0,0.79665057]
[1760065965874,0.40657039,121100.0,121090.0,0.79665057]
[1760065966139,0.40708688,121100.0,121090.0,0.79665057]
[1760065966348,0.40708688,121100.0,121090.0,0.74243057]
[1760065966544,0.44397688,121100.0,121090.0,0.74243057]
[1760065966786,0.44397688,121100.0,121090.0,0.2239064]
[1760065966989,0.44397688,121100.0,121090.0,0.74243057]
[1760065968579,0.21081688,121100.0,121090.0,0.74243057]
[1760065968751,0.44397688,121100.0,121090.0,0.74243057]
[1760065973562,0.00051649,121100.0,121090.0,0.80142057]
[1760065973980,0.15623649,121100.0,121090.0,0.80142057]
[1760065974447,0.00051649,121100.0,121090.0,0.80142057]
[1760065979202,0.00051649,121100.0,121090.0,1.03458057]
[1760065980073,0.00051649,121100.0,121090.0,0.80142057]
[1760065980291,0.00051649,121100.0,121090.0,1.03458057]
[1760065981640,0.00051649,121100.0,121090.0,1.29376854]
[1760065981863,0.00051649,121100.0,121090.0,0.90491247]
[1760065982541,0.00051649,121100.0,121090.0,0.2828964]
[1760065982761,0.1651664,121090.0,121080.0,0.18958896]
[1760065982981,0.1651664,121090.0,121080.0,0.61705503]
[1760065982982,0.2318664,121090.0,121080.0,0.61705503]
[1760065984019,0.0667,121090.0,121080.0,0.61805503]
[1760065984220,0.0667,121090.0,121080.0,1.0069111]
[1760065985047,0.2318664,121090.0,121080.0,1.0069111]
[1760065985755,0.2318664,121090.0,121080.0,1.0079111]
[1760065991512,0.2318664,121090.0,121080.0,0.23019896]
[1760065991711,0.5199964,121090.0,121080.0,1.0079111]
[1760065991916,0.4650264,121090.0,121080.0,1.0079111]
[1760065992795,0.4650264,121090.0,121080.0,0.84273214]
[1760065993344,0.5199964,121090.0,121080.0,0.84273214]
[1760065993758,0.5199964,121090.0,121080.0,0.45387607]
[1760065993964,0.5199964,121090.0,121080.0,0.39085607]
[1760065994913,0.4650264,121090.0,121080.0,0.43034607]
[1760065995075,0.4650264,121090.0,121080.0,0.81920214]
[1760065995237,0.5199964,121090.0,121080.0,0.77971214]
[1760065995441,0.5199964,121090.0,121080.0,0.39085607]
[1760065996450,0.5199964,121090.0,121080.0,0.77971214]
[1760065997683,0.2868364,121090.0,121080.0,0.77971214]
[1760065997902,0.5199964,121090.0,121080.0,0.77971214]
[1760066000205,0.5199964,121090.0,121080.0,0.39085607]
[1760066001270,0.5199964,121090.0,121080.0,0.002]
[1760066001271,0.2868364,121090.0,121080.0,0.002]
[1760066001450,0.5199964,121090.0,121080.0,0.002]
[1760066002731,0.5199964,121090.0,121080.0,0.39085607]